[Event "FIDE WTC-KO 202"]
[Site "Jerusalem"]
[Date "2022.11.23"]
[Round "2.1"]
[White "Xu, Xiangyu"]
[Black "Piorun, Kacper"]
[Result "1/2-1/2"]
[ECO "D35"]
[WhiteElo "2574"]
[BlackElo "2494"]
[Annotator "TA"]
[PlyCount "267"]
[EventDate "2022.11.20"]
[EventType "team-tourn"]
[EventCountry "ISR"]
[SourceTitle "playchess.com"]
[Source "ChessBase"]
[SourceQuality "1"]
[TimeControl "2700+10"]

{[%evp 88,267,184,172,174,172,180,170,155,8,8,8,8,8,8,8,25,19,24,17,24,8,77,78,79,25,72,25,69,14,68,68,68,68,68,0,0,0,68,68,68,68,68,68,68,68,68,54,54,47,54,46,46,42,44,33,44,44,44,42,42,18,39,23,42,34,54,44,47,44,47,46,47,46,46,18,46,29,34,18,29,8,8,8,8,0,0,0,8,8,8,0,0,0,36,0,0,0,0,0,0,0,0,0,46,8,8,8,8,8,8,0,8,8,8,0,0,0,0,0,0,0,0,0,8,0,0,0,8,0,8,8,8,0,0,0,0,0,0,0,0,0,0,0,0,0,0,0,0,0,0,0,0,0,0,0,0,0,0,0,0,0,0,0,0,0,0,0,0,0,0,0,0,0,0,0,0,0,0,0,0,0]} 1. d4 {[%emt 0:00:03]} d5 {[%emt 0:00:20]} 2. c4 {[%emt 0:00:04]} e6 {[%emt 0:00:02]} 3. Nc3 {[%emt 0:00:15]} Nf6 {[%emt 0:00:49]} 4. cxd5 {[%emt 0:00:04]} exd5 {[%emt 0:00:18]} 5. Bg5 {[%emt 0:00:03]} Nbd7 {[%emt 0:01:08]} 6. e3 {[%emt 0:00:04]} h6 {[%emt 0:00:28]} 7. Bf4 {[%emt 0:00:47]} Be7 {[%emt 0:02:39]} 8. Bd3 {[%emt 0:00:51]} c6 {[%emt 0:00:06]} 9. h3 {[%emt 0:00:09]} Nf8 {[%emt 0:00:07]} 10. Nf3 {[%emt 0:00:04]} Ne6 {[%emt 0:00:16]} 11. Bh2 {[%emt 0:00:02]} O-O {[%emt 0:03:58]} 12. O-O {[%emt 0:00:03]} Bd6 {[%emt 0:00:40]} 13. Ne5 {[%emt 0:00:12]} c5 {[%emt 0:02:07]} 14. Nb5 {[%emt 0:07:13]} Be7 {[%emt 0:00:54]} 15. dxc5 {[%emt 0:00:28]} Nxc5 {[%emt 0:03:58]} 16. Rc1 {[%emt 0:01:01]} a6 {[%emt 0:01:09]} 17. Nd4 {[%emt 0:00:27]} Qb6 {[%emt 0:00:10]} 18. Qc2 {[%emt 0:02:16]} Re8 {[%emt 0:09:02]} 19. a3 {[%emt 0:03:50]} Bd6 {[%emt 0:01:32]} 20. b4 {[%emt 0:01:01]} Nce4 {[%emt 0:00:54]} 21. Bxe4 {[%emt 0:01:13]} dxe4 {[%emt 0:00:52]} 22. Nc4 {[%emt 0:00:10]} Bxh2+ {[%emt 0:00:03]} 23. Kxh2 {[%emt 0:00:04]} Qc7+ {[%emt 0:00:27]} 24. Kg1 {[%emt 0:00:05]} Bd7 {[%emt 0:02:26]} 25. Na5 {[%emt 0:00:17]} Qxc2 {[%emt 0:00:20]} 26. Rxc2 {[%emt 0:00:05]} Ba4 {[%emt 0:03:57]} 27. Rd2 {[%emt 0:00:02]} b6 {[%emt 0:00:20]} 28. Nc4 {[%emt 0:00:49]} Rab8 {[%emt 0:00:35]} 29. Nb2 {[%emt 0:03:15]} Bd7 {[%emt 0:01:59]} 30. Rc1 {[%emt 0:00:02]} Kf8 {[%emt 0:00:45]} 31. Rc7 {[%emt 0:00:51]} Rec8 {[%emt 0:00:08]} 32. Ra7 {[%emt 0:01:09]} Ra8 {[%emt 0:00:55]} 33. Rxa8 {[%emt 0:00:03]} Rxa8 {[%emt 0:00:01]} 34. Nc4 {[%emt 0:00:03]} Rb8 {[%emt 0:00:12]} 35. Kh2 {[%emt 0:03:21]} g6 {[%emt 0:00:46]} 36. f3 {[%emt 0:00:41]} exf3 {[%emt 0:00:57]} 37. gxf3 {[%emt 0:00:02]} Nd5 {[%emt 0:01:52]} 38. e4 {[%emt 0:00:29]} Nf4 {[%emt 0:00:46]} 39. h4 {[%emt 0:01:19]} g5 {[%emt 0:01:03]} 40. Ne5 {[%emt 0:00:09]} Be8 {[%emt 0:00:45]} 41. Nf5 {[%emt 0:00:01]} f6 {[%emt 0:00:19]} 42. Ng4 {[%emt 0:00:07]} Bg6 {[%emt 0:00:34]} 43. Rd6 {[%emt 0:00:25]} Bxf5 {[%emt 0:00:47]} 44. Rxf6+ {[%emt 0:00:03]} Ke7 {[%emt 0:00:02]} 45. Rxf5 {[%emt 0:00:06]} Rc8 {[%emt 0:00:01]} 46. hxg5 {[%emt 0:00:12]} hxg5 {[%emt 0:00:10]} 47. Rxg5 {[%emt 0:01:15]} Rc3 {[%emt 0:00:01]} 48. Rf5 {[%emt 0:00:55]} ({White should play} 48. Re5+ $16 Kd8 49. Kg3) 48... Rxf3 $11 {[%emt 0:00:28]} 49. Ne5 {[%emt 0:00:08]} Rh3+ {[%emt 0:00:12]} 50. Kg1 {[%emt 0:00:02]} Ne2+ {[%emt 0:00:11]} 51. Kf2 {[%emt 0:00:03]} Nd4 {[%emt 0:00:02]} (51... Nc3 $5 {[%cal Rc3e4]}) 52. Ng6+ {[%emt 0:00:01]} Ke8 {[%emt 0:00:11]} 53. Rd5 {[%emt 0:01:47]} Nb5 {[%emt 0:00:40]} 54. e5 {[%emt 0:00:25]} Kf7 {[%emt 0:00:23]} (54... Rxa3 $11 {keeps the balance.} 55. e6 Nc3) 55. Nf4 $16 {[%emt 0:00:09]} Rxa3 {[%emt 0:00:02]} 56. e6+ {[%emt 0:00:02]} (56. Rd7+ $16 Ke8 57. e6) 56... Ke8 {[%emt 0:00:24]} (56... Kf6 $11) 57. Rh5 {[%emt 0:00:24]} (57. Rd7 $16 {Intending Nh5 and mate.} Ra2+ 58. Kf3 Ra3+ 59. Kf2 Ra2+ 60. Kg3 Ra3+ 61. Kf2) 57... Nd4 {[%emt 0:00:11]} 58. Kg2 {[%emt 0:00:31]} (58. Rh8+ $14 Ke7 59. Rh7+ Ke8 60. Nd5 Nxe6 61. Re7+ (61. Nxb6 Nf4 $11) 61... Kd8 62. Rxe6) 58... a5 {[%emt 0:00:07]} (58... Ra2+ $1 $11 59. Kh3 a5) 59. Rh8+ $14 {[%emt 0:00:12]} Ke7 {[%emt 0:00:00]} 60. Rh7+ {[%emt 0:00:02]} Ke8 {[%emt 0:00:01]} 61. e7 {[%emt 0:00:06]} (61. Nd5 $14 Nxe6 62. Re7+ (62. Nxb6 Nf4+ 63. Kf2 axb4 $11) 62... Kd8 63. Rxe6) 61... Ra2+ {[%emt 0:00:24]} (61... axb4 62. Nd5 Ra2+ 63. Kh3 Kd7 64. Nf6+ Kd6 65. e8=Q (65. e8=B b3 $11) 65... Re2 66. Qd8+ Ke5 67. Qd5+ Kxf6 68. Qxd4+) 62. Kh3 {[%emt 0:00:06]} Nc6 {[%emt 0:00:20]} (62... axb4 63. Nd5 Kd7 64. Nf6+ Kd6 65. e8=Q (65. e8=B b3 $11) 65... Re2 66. Qd8+ Ke5 67. Qd5+ Kxf6 68. Rh6+ Kg7 69. Qg5+ Kf7 70. Qf6+ Ke8 71. Rh8+ Kd7 72. Rh7+ Kc8 73. Qh8+) (62... Ra1 $11 63. Kg2 Ra2+ 64. Kf1 Ra1+ 65. Kf2 Ra2+ 66. Kf1 (66. Ke3 Nf5+ 67. Ke4 Nd6+ 68. Kd3 Ra3+ 69. Kc2 Ra2+ 70. Kd3 Ra3+ 71. Kc2 Ra2+ 72. Kd3 $11) 66... Ra1+ 67. Kf2 Ra2+ 68. Kf1 (68. Ke3 Nf5+ 69. Ke4 Nxe7 $11)) 63. Nd5 $1 $14 {[%emt 0:00:05]} Nxe7 {[%emt 0:00:01]} (63... Nxb4 $2 64. Nf6#) 64. Rxe7+ {[%emt 0:00:30]} ({Much worse is} 64. Nxe7 axb4 65. Nf5 b3 66. Nd6+ Kd8 67. Nb7+ Ke8 68. Nd6+ Kd8 69. Nb7+ Ke8 70. Nd6+ $11) 64... Kd8 {[%emt 0:00:00]} 65. Rb7 {[%emt 0:00:18]} axb4 {[%emt 0:00:06]} 66. Nxb4 {[%emt 0:00:03]} Rb2 {[%emt 0:00:16]} 67. Nc6+ {[%emt 0:00:02]} Kc8 {[%emt 0:00:05]} 68. Re7 {[%emt 0:00:01]} Rc2 {[%emt 0:00:03]} 69. Nd4 {[%emt 0:00:07]} Rc7 {[%emt 0:00:04]} 70. Re8+ {[%emt 0:00:04]} Kd7 {[%emt 0:00:00]} 71. Rb8 {[%emt 0:00:04]} Rc3+ {[%emt 0:00:05]} 72. Kg2 {[%emt 0:00:01]} Rd3 {[%emt 0:00:04]} 73. Nf5 {[%emt 0:00:10]} Kc7 {[%emt 0:00:06]} 74. Ra8 {[%emt 0:00:02]} Kb7 {[%emt 0:00:02]} 75. Ra1 {[%emt 0:00:03]} Kc7 {[%emt 0:00:02]} 76. Kf2 {[%emt 0:00:02]} Rd5 {[%emt 0:00:15]} 77. Ne3 {[%emt 0:00:01]} Ra5 {[%emt 0:00:01]} 78. Rb1 {[%emt 0:00:05]} Rc5 {[%emt 0:00:04]} 79. Kf3 {[%emt 0:00:02]} Kc6 {[%emt 0:00:01]} 80. Ke4 {[%emt 0:00:02]} Rh5 {[%emt 0:00:04]} 81. Nf5 {[%emt 0:00:03]} Rh2 {[%emt 0:00:10]} 82. Rc1+ {[%emt 0:00:01]} Kb5 {[%emt 0:00:32]} 83. Nd4+ {[%emt 0:00:13]} Kb4 {[%emt 0:00:02]} 84. Nc6+ {[%emt 0:00:06]} Kb3 {[%emt 0:00:17]} 85. Kd5 {[%emt 0:00:03]} Rh5+ {[%emt 0:00:15]} 86. Ne5 {[%emt 0:00:03]} b5 {[%emt 0:00:10]} 87. Rb1+ {[%emt 0:00:01]} Kc3 {[%emt 0:00:02]} 88. Rxb5 {[%emt 0:00:04]} Rh8 {[%emt 0:00:20]} 89. Rc5+ {[%emt 0:00:02]} Kd2 {[%emt 0:00:01]} 90. Ra5 {[%emt 0:00:04]} Kc3 {[%emt 0:00:10]} 91. Kc5 {[%emt 0:00:02]} Kd2 {[%emt 0:00:05]} 92. Ra3 {[%emt 0:00:04]} Ke2 {[%emt 0:00:12]} 93. Kd5 {[%emt 0:00:05]} Kd2 {[%emt 0:00:13]} 94. Ng4 {[%emt 0:00:08]} Rd8+ {[%emt 0:00:18]} 95. Ke4 {[%emt 0:00:02]} Kc2 {[%emt 0:00:02]} (95... Re8+ $11 {is superior.} 96. Ne5 Kc2) 96. Rh3 {[%emt 0:00:13]} Kd2 {[%emt 0:00:09]} 97. Nf6 {[%emt 0:00:06]} Kc2 {[%emt 0:00:24]} 98. Nd5 {[%emt 0:00:02]} Re8+ {[%emt 0:00:23]} 99. Kd4 {[%emt 0:00:05]} Kd2 {[%emt 0:00:12]} 100. Rd3+ {[%emt 0:00:16]} Ke1 {[%emt 0:00:22]} 101. Ra3 {[%emt 0:00:10]} Kf2 {[%emt 0:00:02]} 102. Nf6 {[%emt 0:00:08]} Rd8+ {[%emt 0:00:09]} 103. Ke4 {[%emt 0:00:01]} Ke2 {[%emt 0:00:27]} 104. Rc3 {[%emt 0:00:24]} Kd2 {[%emt 0:00:04]} 105. Rc6 {[%emt 0:00:05]} Rh8 {[%emt 0:00:08]} 106. Kd4 {[%emt 0:00:03]} Rd8+ {[%emt 0:00:03]} 107. Nd5 {[%emt 0:00:02]} Rh8 {[%emt 0:00:12]} 108. Rf6 {[%emt 0:00:20]} Rh4+ {[%emt 0:00:06]} 109. Nf4 {[%emt 0:00:02]} Rh8 {[%emt 0:00:07]} 110. Rf7 {[%emt 0:00:18]} Ra8 {[%emt 0:00:13]} 111. Nd5 {[%emt 0:00:12]} Ra4+ {[%emt 0:00:02]} 112. Ke5 {[%emt 0:00:01]} Ra8 {[%emt 0:00:10]} 113. Rf3 {[%emt 0:00:05]} Ke2 {[%emt 0:00:16]} 114. Rb3 {[%emt 0:00:02]} Re8+ {[%emt 0:00:06]} 115. Kd4 {[%emt 0:00:02]} Kf2 {[%emt 0:00:02]} 116. Nf6 {[%emt 0:00:02]} Rd8+ {[%emt 0:00:07]} 117. Ke4 {[%emt 0:00:01]} Ke2 {[%emt 0:00:06]} 118. Ng4 {[%emt 0:00:15]} Kd2 {[%emt 0:00:10]} 119. Ne3 {[%emt 0:00:03]} Re8+ {[%emt 0:00:09]} 120. Kd4 {[%emt 0:00:02]} Ke2 {[%emt 0:00:01]} 121. Nc4 {[%emt 0:00:23]} Kf2 {[%emt 0:00:26]} 122. Rb2+ {[%emt 0:00:18]} Kg3 {[%emt 0:00:06]} 123. Ne5 {[%emt 0:00:02]} Ra8 {[%emt 0:00:15]} 124. Rb3+ {[%emt 0:00:04]} Kf4 {[%emt 0:00:05]} 125. Rf3+ {[%emt 0:00:04]} Kg5 {[%emt 0:00:02]} 126. Nc6 {[%emt 0:00:05]} Ra1 {[%emt 0:00:13]} 127. Rf8 {[%emt 0:00:05]} Rd1+ {[%emt 0:00:09]} 128. Ke4 {[%emt 0:00:02]} Re1+ {[%emt 0:00:02]} 129. Kd5 {[%emt 0:00:01]} Ra1 {[%emt 0:00:03]} 130. Nd4 {[%emt 0:00:02]} Kg4 {[%emt 0:00:14]} 131. Ne2 {[%emt 0:00:43]} Ra4 {[%emt 0:00:36]} 132. Ke5 {[%emt 0:00:04]} Ra5+ {[%emt 0:00:11]} 133. Ke4 {[%emt 0:00:14]} Kg5 {[%emt 0:00:02]} 134. Nd4 {[%emt 0:02:23]} 1/2-1/2

[Event "FIDE WTC-KO 202"]
[Site "Jerusalem"]
[Date "2022.11.23"]
[Round "2.1"]
[White "Yakubboev, Nodirbek"]
[Black "Ivanchuk, Vasyl"]
[Result "1/2-1/2"]
[ECO "A37"]
[WhiteElo "2563"]
[BlackElo "2686"]
[Annotator "TA"]
[PlyCount "79"]
[EventDate "2022.11.20"]
[EventType "team-tourn"]
[EventCountry "ISR"]
[SourceTitle "playchess.com"]
[Source "ChessBase"]
[SourceQuality "1"]
[TimeControl "2700+10"]

{[%evp 12,79,20,10,19,-6,40,45,50,20,35,33,27,16,13,0,5,3,13,6,32,24,18,0,0,0,0,0,0,0,0,0,0,0,0,0,0,0,0,-12,0,-3,0,-8,0,-19,-21,-20,-8,-10,0,-11,0,-16,-11,-22,-20,-20,-6,-17,-7,-12,0,0,0,-14,0,0,0,-14]} 1. c4 {[%emt 0:00:04]} c5 {[%emt 0:00:35]} 2. g3 {[%emt 0:00:13]} g6 {[%emt 0:00:11]} 3. Bg2 {[%emt 0:00:03]} Bg7 {[%emt 0:00:01]} 4. Nc3 {[%emt 0:00:02]} Nc6 {[%emt 0:00:02]} 5. Nf3 {[%emt 0:00:02]} d6 {[%emt 0:00:18]} 6. O-O {[%emt 0:00:06]} Nh6 {[%emt 0:00:51] 6...e6 gains popularity.} 7. d4 {[%emt 0:04:20]} cxd4 {[%emt 0:00:05] A37: Symmetrical English vs ...g6: 4 Bg2 Bg7 5 Nf3.} 8. Nxd4 {[%emt 0:00:03][%mdl 64] [#]} Bd7 {[%emt 0:02:44] [#]} (8... Nxd4 $11 9. Bxh6 Nxe2+ 10. Qxe2 Bxh6) 9. Nxc6 $146 {[%emt 0:10:29]} ({Predecessor:} 9. c5 dxc5 10. Nxc6 Bxc6 11. Bxc6+ {½-½ (11) Pantovic,D (2132)-Velickovic,S (2377) Vrnjacka Banja 2014}) 9... bxc6 {[%emt 0:01:07] White is slightly better.} 10. Bd2 {[%emt 0:00:15]} (10. e4 $5 {[%cal Rc4c5]}) 10... Qc8 {[%emt 0:02:30]} 11. Rc1 {[%emt 0:01:53]} O-O {[%emt 0:03:10]} 12. b4 {[%emt 0:01:51]} Bh3 {[%emt 0:00:17]} 13. e4 {[%emt 0:01:14]} Bxg2 {[%emt 0:02:56]} 14. Kxg2 {[%emt 0:00:02]} f5 {[%emt 0:00:02]} 15. Qe2 {[%emt 0:02:05]} fxe4 {[%emt 0:03:53]} 16. Nxe4 {[%emt 0:02:28]} Nf5 {[%emt 0:00:03]} 17. Bc3 {[%emt 0:01:09] The position is equal.} Bxc3 {[%emt 0:03:10]} 18. Nxc3 {[%emt 0:00:52]} Qb7 {[%emt 0:02:28]} 19. Qe4 {[%emt 0:00:04]} Qxb4 {[%emt 0:04:58]} 20. Qxc6 {[%emt 0:00:03]} Rac8 {[%emt 0:00:02]} 21. Qd5+ {[%emt 0:00:01]} Kh8 {[%emt 0:00:00]} 22. Ne4 {[%emt 0:00:11]} Qb2 {[%emt 0:00:03] [#] Hoping for ...Ne3+.} 23. Qd2 {[%emt 0:00:03] Inhibits Ne3+.} Qxd2 {[%emt 0:00:40]} 24. Nxd2 {[%emt 0:00:02]} Rc7 {[%emt 0:00:39]} 25. Rc3 {[%emt 0:03:24]} Rfc8 {[%emt 0:01:37]} 26. Rfc1 {[%emt 0:01:50]} Nd4 {[%emt 0:02:12] aiming for ...Ne2.} 27. Kf1 {[%emt 0:00:32] Against Ne2} Nc6 {[%emt 0:05:09]} 28. Ke2 {[%emt 0:03:10]} Kg7 {[%emt 0:00:25]} 29. f4 {[%emt 0:01:30]} Kf7 {[%emt 0:00:23]} 30. Ke3 {[%emt 0:00:53]} Ke8 {[%emt 0:02:23]} 31. a3 {[%emt 0:00:58]} Kd7 {[%emt 0:01:29]} 32. Kd3 {[%emt 0:00:26]} Nd8 {[%emt 0:00:50]} 33. Rb1 {[%emt 0:01:45]} Ne6 {[%emt 0:00:19]} 34. Ne4 {[%emt 0:00:03]} Rc6 {[%emt 0:00:25]} 35. Rb5 {[%emt 0:02:14]} Ra6 {[%emt 0:02:23]} 36. Rcb3 {[%emt 0:00:26]} Ra4 {[%emt 0:00:29]} 37. R5b4 {[%emt 0:00:14]} Ra5 {[%emt 0:00:14]} ({But not} 37... Rxb4 38. axb4 Ra8 39. Ra3 $16) 38. Rb5 {[%emt 0:00:21]} Ra4 {[%emt 0:00:12]} 39. R5b4 {[%emt 0:01:12]} Ra5 {[%emt 0:00:01]} ({Much less strong is} 39... Rxb4 40. axb4 a6 41. Ra3 $14) 40. Rb5 {[%emt 0:00:07] Weighted Error Value: White=0.06 (flawless) /Black=0.06 (flawless)} 1/2-1/2

[Event "FIDE WTC-KO 202"]
[Site "Jerusalem"]
[Date "2022.11.23"]
[Round "2.1"]
[White "Bernadskiy, Vitaliy"]
[Black "Vakhidov, Jakhongir"]
[Result "0-1"]
[ECO "B38"]
[WhiteElo "2544"]
[BlackElo "2507"]
[Annotator "TA"]
[PlyCount "104"]
[EventDate "2022.11.20"]
[EventType "team-tourn"]
[EventCountry "ISR"]
[SourceTitle "playchess.com"]
[Source "ChessBase"]
[SourceQuality "1"]
[TimeControl "2700+10"]

{[%evp 11,104,31,40,40,40,32,35,31,36,30,43,40,36,26,34,39,63,70,54,62,79,69,84,30,17,4,24,-2,89,0,0,0,0,0,0,0,0,0,0,0,0,0,0,0,0,-57,-59,-50,-48,-43,0,-98,-128,-113,-117,-119,-131,-140,-113,-180,-183,-175,-178,-170,-162,-275,-274,-267,-246,-387,-363,-377,-368,-852,-834,-857,-811,-813,-661,-983,-938,-722,-612,-1038,-969,-29983,-29984,-29984,-29985,-29988,-29989,-29989,-29990,-29990,-29991]} 1. e4 {[%emt 0:00:02]} c5 {[%emt 0:00:05]} 2. Nf3 {[%emt 0:00:02]} Nc6 {[%emt 0:00:02]} 3. d4 {[%emt 0:00:23]} cxd4 {[%emt 0:00:02]} 4. Nxd4 {[%emt 0:00:02]} g6 {[%emt 0:00:05]} 5. c4 {[%emt 0:00:23]} Bg7 {[%emt 0:00:02]} 6. Be3 {[%emt 0:00:02]} Qb6 {[%emt 0:00:02][%cal Rc6d4]} 7. Nb3 {[%emt 0:00:02] B38: Sicilian: Maroczy Bind with 5...Bg7 and 7...0-0.} Qd8 {[%emt 0:00:02]} 8. Qd2 {[%emt 0:00:01]} Nf6 {[%emt 0:00:03]} 9. f3 {[%emt 0:00:02] White is slightly better.} d6 {[%emt 0:00:11]} 10. Be2 {[%emt 0:00:38]} O-O {[%emt 0:00:04]} 11. Nc3 {[%emt 0:00:58]} a5 {[%emt 0:00:02]} 12. Nd4 {[%emt 0:00:24]} Nxd4 {[%emt 0:05:00]} 13. Bxd4 {[%emt 0:00:02]} ({But not} 13. Qxd4 Ng4 $1 14. Qd2 Nxe3 15. Qxe3 Be6 $15) 13... Bd7 {[%emt 0:00:06]} 14. g4 {[%emt 0:01:53]} a4 {[%emt 0:01:54]} 15. h4 {[%emt 0:00:58][%cal Bh2h4,Bh4h5][%mdl 32]} Qa5 {[%emt 0:00:19] Inhibits h5.} 16. h5 {[%emt 0:01:17]} Be6 {[%emt 0:01:08]} 17. O-O-O {[%emt 0:02:34]} ({White should try} 17. Rb1 $16) 17... Rfc8 $1 $11 {[%emt 0:01:03]} 18. hxg6 {[%emt 0:00:59]} fxg6 {[%emt 0:00:35]} 19. g5 {[%emt 0:00:11] [#]} (19. Kb1 $5 {[%cal Ra2a3]}) 19... Ne8 $146 {[%emt 0:02:41]} (19... Nh5 $11 20. Bxg7 Kxg7) ({Predecessor:} 19... Nh5 20. Bxg7 Kxg7 21. Kb1 Qe5 22. Rxh5 gxh5 23. f4 Qc5 24. f5 Bxc4 25. f6+ Kh8 26. Bxc4 Qxc4 27. fxe7 Qe6 {1-0 (36) Handke,F (2533)-Schirm,F (2257) Dortmund 2022}) 20. Bxg7 {[%emt 0:07:54]} (20. Kb1 $1 $16) 20... Nxg7 {[%emt 0:00:05][%cal Be8g7,Bg7e6,Be6c7][%mdl 32]} 21. Nd5 {[%emt 0:00:25]} Bxd5 {[%emt 0:01:05]} 22. Qxd5+ {[%emt 0:00:07]} Qxd5 {[%emt 0:00:03]} 23. Rxd5 {[%emt 0:00:03]} Ne6 {[%emt 0:00:22]} 24. Kd2 {[%emt 0:29:48]} Rc5 {[%emt 0:06:00]} 25. Rg1 {[%emt 0:00:00]} Ra6 {[%emt 0:05:00]} 26. Rg4 {[%emt 0:00:00]} Nc7 $1 {[%emt 0:02:55]} 27. Rxc5 {[%emt 0:00:00]} dxc5 {[%emt 0:00:01][%mdl 4096] Endgame KRB-KRN} 28. Kc3 {[%emt 0:00:00]} (28. e5 $11) 28... e5 $1 $15 {[%emt 0:00:51]} 29. f4 {[%emt 0:00:00]} exf4 {[%emt 0:00:49]} 30. Rxf4 {[%emt 0:00:00]} Re6 {[%emt 0:01:43]} (30... Ne6 $5 {[%cal Re6f4]} 31. Rg4 a3 $11) 31. Bd1 {[%emt 0:00:00]} (31. Bg4 $11 Re5 32. Bc8) 31... Re5 $17 {[%emt 0:00:04] White is on the road to losing.} 32. Bxa4 {[%emt 0:00:00] [#]} Ne6 $1 {[%emt 0:00:01]} 33. Rg4 {[%emt 0:00:00]} Nxg5 {[%emt 0:00:20] Black is more active.} 34. Kd3 {[%emt 0:00:00]} Kg7 {[%emt 0:00:29]} 35. Ke3 {[%emt 0:00:00]} (35. Rg2 $17) 35... h5 $19 {[%emt 0:00:37]} 36. Rh4 {[%emt 0:00:00]} Nf7 {[%emt 0:00:29]} 37. Bd1 {[%emt 0:00:00]} Nd6 {[%emt 0:00:29]} 38. b3 {[%emt 0:00:00]} (38. Kd3 {keeps fighting.}) 38... Nf5+ {[%emt 0:00:24]} 39. Kf4 {[%emt 0:00:00] [#]} Kf6 {[%emt 0:00:05]} ({Not} 39... Nxh4 40. Kxe5 Ng2 41. Kd6 $16) (39... Rxe4+ 40. Kxe4 Nxh4 41. a3 $17) 40. Rh1 {[%emt 0:00:00]} (40. Rh2 $142 g5+ 41. Kf3 g4+ 42. Kf4) 40... g5+ {[%emt 0:00:12][%cal Bg6g5,Bg5g4][%mdl 32]} 41. Kf3 {[%emt 0:00:00]} g4+ {[%emt 0:00:20]} 42. Kf4 $2 {[%emt 0:00:00] [#]} (42. Kf2 Rxe4 43. Rxh5) 42... Rxe4+ $3 {[%emt 0:08:06][%mdl 512]} 43. Kxe4 {[%emt 0:00:00]} Ng3+ {[%emt 0:00:01]} 44. Kf4 {[%emt 0:00:00]} Nxh1 {[%emt 0:00:01] KB-KN} 45. Bc2 {[%emt 0:00:00]} Nf2 {[%emt 0:00:02] White must now prevent ...h4.} 46. Kg3 {[%emt 0:00:00]} Nh3 {[%emt 0:00:01]} 47. Kh4 {[%emt 0:00:00]} Ng5 {[%emt 0:00:30] Against Be4. Threatens to win with ...Nf3+.} 48. a3 {[%emt 0:01:36]} Nf3+ {[%emt 0:00:12] Black mates.} 49. Kg3 {[%emt 0:00:01]} Kg5 {[%emt 0:00:27]} 50. Be4 {[%emt 0:00:01]} h4+ {[%emt 0:00:22][%cal Bh5h4,Bh4h3][%mdl 32]} 51. Kf2 {[%emt 0:00:05]} Kf4 {[%emt 0:00:16]} 52. Bxb7 {[%emt 0:00:01]} h3 {[%emt 0:00:12] Weighted Error Value: White=0.59/Black=0.06 (flawless)} 0-1